fUSD/lending_fUSD_20240113
["ID","MTS","AMOUNT","RATE_DAILY","PERIOD"]
[311514589,1705171852198,-1500.51,0.00024,2]
[311514590,1705171852207,-201.75934917,0.00024,2]
[311514591,1705171852217,-431.11450683,0.00024,2]
[311514592,1705171852226,-1000.0,0.00024,2]
[311514593,1705171852235,-1000.0,0.00024,2]
[311514594,1705171852244,-1300.0,0.00024,3]
[311514595,1705171852254,-165.77365,0.00024,2]
[311514596,1705171852263,-508.562494,0.00024,2]
[311514597,1705171852273,-3000.0,0.00024,2]
[311514598,1705171852283,-3000.0,0.0002401,2]
[311514599,1705171852293,-3000.0,0.0002402,2]
[311514600,1705171852302,-3000.0,0.0002403,2]
[311514601,1705171852312,-3000.0,0.0002404,2]
[311514602,1705171852321,-3000.0,0.0002405,2]
[311514603,1705171852331,-3000.0,0.0002406,2]
[311514604,1705171852340,-3000.0,0.0002407,2]
[311514605,1705171852350,-14299.50816225,0.00024079,2]
[311514606,1705171852359,-3000.0,0.0002408,2]
[311514607,1705171852369,-3000.0,0.0002409,2]
[311514608,1705171852378,-3000.0,0.000241,2]
[311514609,1705171852388,-3000.0,0.0002411,2]
[311514610,1705171852398,-151.75,0.00024113,2]
[311514611,1705171852407,-297.88,0.00024113,2]
[311514612,1705171852416,-3000.0,0.0002412,2]
[311514613,1705171852426,-3165.56,0.00024121,2]
[311514614,1705171852435,-3000.0,0.0002413,2]
[311514615,1705171852444,-3000.0,0.0002414,2]
[311514616,1705171852454,-3000.0,0.0002415,2]
[311514617,1705171852463,-3000.0,0.0002416,2]
[311514618,1705171852473,-3000.0,0.0002417,2]
[311514619,1705171852482,-9495.77,0.00024174,2]
[311514620,1705171852491,-635.58,0.00024174,2]
[311514621,1705171852501,-3000.0,0.0002418,2]
[311514622,1705171852510,-3000.0,0.0002419,2]
[311514623,1705171852519,-262.31,0.00024199,2]
[311514624,1705171852530,-3000.0,0.000242,2]
[311514625,1705171852541,-3000.0,0.0002421,2]
[311514626,1705171852551,-3000.0,0.0002422,2]
[311514627,1705171852561,-3000.0,0.0002423,2]
[311514628,1705171852571,-3000.0,0.0002424,2]
[311514629,1705171852580,-3000.0,0.0002425,2]
[311514630,1705171852590,-3000.0,0.0002426,2]
[311514631,1705171852600,-3000.0,0.0002427,2]
[311514632,1705171852611,-3000.0,0.0002428,2]
[311514633,1705171852621,-3000.0,0.0002429,2]
[311514634,1705171852631,-165.79,0.00024297,2]
[311514635,1705171852642,-167.0,0.00024297,2]
[311514636,1705171852652,-168.21,0.00024297,2]
[311514637,1705171852662,-3761.45912,0.000243,2]
[311514638,1705171852675,-210.0,0.00024309,2]
[311514639,1705171852685,-151.75,0.00024324,2]
[311514640,1705171852696,-297.88,0.00024325,2]
[311514641,1705171852706,-200000.0,0.00024335,2]
[311514642,1705171852718,-151.0,0.00024335,7]
[311514643,1705171852727,-300.0,0.00024344,2]
[311514644,1705171852738,-154.6,0.00024364,2]
[311514645,1705171852747,-208.0,0.00024382,2]
[311514646,1705171852758,-262.31,0.00024411,2]
[311514647,1705171852768,-283.58547597,0.00024418,2]
[311514648,1705171852780,-151.75,0.00024536,2]
[311514649,1705171852789,-297.88,0.00024536,2]
[311514650,1705171852798,-262.31,0.00024623,2]
[311514651,1705171852808,-209.0,0.0002463,2]
[311514652,1705171852817,-209.0,0.0002463,2]
[311514653,1705171852826,-602.81,0.00024658,4]
[311514654,1705171852836,-250.0,0.00024658,2]
[311514655,1705171852846,-3119.28,0.00024707,2]
[311514656,1705171852855,-500.0,0.00024709,2]
[311514657,1705171852866,-151.75,0.00024747,2]
[311514658,1705171852877,-297.88,0.00024748,2]
[311514659,1705171852888,-12628.413093,0.0002475,2]
[311514660,1705171852897,-262.31,0.00024835,2]
[311514661,1705171852907,-154.6,0.00024866,2]
[311514662,1705171852916,-250.0,0.000249,2]
[311514663,1705171852926,-151.75,0.00024959,2]
[311514664,1705171852935,-297.88,0.00024959,2]
[311514665,1705171852945,-630.26679258,0.00025,2]
[311514666,1705171852955,-1069.76501515,0.00025,2]
[311514667,1705171852964,-1251.99296773,0.00025,2]
[311514668,1705171852974,-303.15894596,0.00025,2]
[311514669,1705171852985,-387.44495424,0.00025,2]
[311514670,1705171852994,-307.5946143,0.00025,5]
[311514671,1705171853004,-723.78880326,0.00025,2]
[311514672,1705171853014,-167.20178626,0.00025,2]
[311514673,1705171853023,-201.83579665,0.00025,2]
[311514674,1705171853034,-738.5668293,0.00025,2]
[311514675,1705171853043,-533.40967656,0.00025,2]
[311514676,1705171853053,-1000.0,0.00025,2]
[311514677,1705171853062,-1000.0,0.00025,2]
[311514678,1705171853071,-150.0,0.00025,2]
[311514679,1705171853081,-500.0,0.00025,2]
[311514680,1705171853090,-300.0,0.00025,2]
[311514681,1705171853100,-650.0,0.00025,2]
[311514682,1705171853109,-1444.44302856,0.00025,2]
[311514683,1705171853118,-150.0,0.00025,2]
[311514684,1705171853128,-1298.1884168,0.00025,2]
[311514685,1705171853137,-450.0,0.0002502,3]
[311514686,1705171853146,-262.31,0.00025048,2]
[311514687,1705171853156,-3165.56,0.00025099,2]
[311514688,1705171853166,-151.75,0.0002517,2]
[311514689,1705171853176,-297.88,0.00025171,2]
[311514690,1705171853186,-150.0,0.00025205,2]
[311514691,1705171853195,-262.31,0.0002526,2]
[311514692,1705171853205,-14299.50816225,0.00025261,2]
[311514693,1705171853214,-150.0,0.00025293,2]
[311514694,1705171853223,-154.6,0.00025368,2]
[311514695,1705171853233,-151.75,0.00025382,2]
[311514696,1705171853242,-297.88,0.00025382,2]
[311514697,1705171853252,-2507.65305162,0.00025417,2]
[311514698,1705171853261,-262.31,0.00025472,2]
[311514699,1705171853270,-3119.28,0.00025575,2]
[311514700,1705171853279,-209.0,0.000256,2]
[311514701,1705171853289,-209.0,0.000256,2]
[311514702,1705171853298,-167.0,0.00025633,2]
[311514703,1705171853307,-500.0,0.00025863,2]
[311514704,1705171853317,-1000.0,0.00025904,3]
[311514705,1705171853327,-1355.0,0.00025938,2]
[311514706,1705171853336,-835.0,0.00025938,2]
[311514707,1705171853346,-1852.0,0.00025938,2]
[311514708,1705171853355,-945.0,0.00025938,2]
[311514709,1705171853364,-1234.0,0.00025938,2]
[311514710,1705171853373,-1252.0,0.00025938,2]
[311514711,1705171853383,-300.75,0.00025938,2]
[311514712,1705171853393,-1493.615,0.00025938,2]
[311514713,1705171853402,-507.0,0.00025938,2]
[311514714,1705171853412,-879.0,0.00025938,2]
[311514715,1705171853421,-318.0,0.00025938,2]
[311514716,1705171853430,-2901.0,0.00025938,2]
[311514717,1705171853440,-7343.0,0.00025938,2]
[311514718,1705171853449,-19683.0,0.00025938,2]
[311514719,1705171853459,-2271.0,0.00025938,2]
[311514720,1705171853468,-8086.0,0.00025938,2]
[311514721,1705171853478,-150.0,0.00025938,2]
[311514722,1705171853487,-150.0,0.00025938,2]
[311514723,1705171853496,-1028.0,0.00025938,2]
[311514724,1705171853505,-150.0,0.00025938,2]
[311514725,1705171853515,-1000.0,0.00026,5]
[311514726,1705171853525,-1000.0,0.00026,2]
[311514727,1705171853534,-1000.0,0.00026,2]
[311514728,1705171853544,-1350.0,0.00026,3]
[311514729,1705171853554,-165.773651,0.00026,2]
[311514730,1705171853563,-508.562495,0.00026,2]
[311514731,1705171853573,-300.0,0.00026,2]
[311514732,1705171853584,-150.0,0.00026,2]
[311514733,1705171853594,-1298.1884168,0.00026,2]
[311514734,1705171853605,-558.53,0.00026021,2]
[311514735,1705171853616,-3165.56,0.00026078,2]
[311514736,1705171853628,-150.0,0.00026079,2]
[311514737,1705171853639,-1000.0,0.00026108,3]
[311514738,1705171853649,-1000.0,0.00026108,3]
[311514739,1705171853659,-1000.0,0.00026108,3]
[311514740,1705171853669,-1000.0,0.00026108,3]
[311514741,1705171853678,-1000.0,0.00026108,3]
[311514742,1705171853688,-1000.0,0.00026108,3]
[311514743,1705171853697,-500.0,0.00026122,2]
[311514744,1705171853706,-500.0,0.0002638,2]
[311514745,1705171853715,-16433.35532986,0.000264,2]
[311514746,1705171853724,-317.823804,0.000264,2]
[311514747,1705171853733,-317.823804,0.000264,2]
[311514748,1705171853742,-558.84,0.00026436,2]
[311514749,1705171853751,-14299.50816225,0.00026443,2]
[311514750,1705171853761,-3119.28,0.00026443,2]
[311514751,1705171853820,-390.01990024,0.00026464,2]
[311514752,1705171853830,-551.45,0.00026482,2]
[311514753,1705171853839,-209.0,0.0002657,2]
[311514754,1705171853849,-209.0,0.0002657,2]
[311514755,1705171853859,-4743.65,0.00026575,2]
[311514756,1705171853870,-2347.01,0.00026575,2]
[311514757,1705171853880,-10291.95,0.00026575,2]
[311514758,1705171853891,-150.0,0.00026627,2]
[311514759,1705171853901,-500.0,0.00026639,2]
[311514760,1705171853910,-293.0,0.0002674,2]
[311514761,1705171853921,-150.0,0.00026778,2]
[311514762,1705171853930,-150.0,0.00026778,2]
[311514763,1705171853940,-22573.56415898,0.000268,15]
[311514764,1705171853949,-160.16388351,0.00026886,2]
[311514765,1705171853958,-500.0,0.00026897,2]
[311514766,1705171853967,-5000.0,0.000269,2]
[311514767,1705171853977,-167.0,0.0002697,2]
[311514768,1705171853986,-155.0,0.00027,2]
[311514769,1705171853996,-12286.20478265,0.00027,2]
[311514770,1705171854004,-14824.26979985,0.00027,5]
[311514771,1705171854014,-415.69829731,0.00027,2]
[311514772,1705171854023,-1000.0,0.00027,2]
[311514773,1705171854032,-1000.0,0.00027,2]
[311514774,1705171854041,-300.0,0.00027,2]
[311514775,1705171854050,-150.0,0.00027,2]
[311514776,1705171854061,-1298.1884168,0.00027,2]
[311514777,1705171854071,-3165.56,0.00027056,2]
[311514778,1705171854081,-2507.65305162,0.00027111,3]
[311514779,1705171854089,-1812.62,0.00027123,2]
[311514780,1705171854098,-5000.0,0.0002715,2]
[311514781,1705171854108,-500.0,0.00027156,2]
[311514782,1705171854117,-150.0,0.00027185,2]
[311514783,1705171854126,-150.0,0.00027185,2]
[311514784,1705171854135,-150.0,0.00027298,2]
[311514785,1705171854144,-629.462593,0.000273,2]
[311514786,1705171854154,-3119.28,0.00027311,2]
[311514787,1705171854163,-40117.8145187,0.0002739,2]
[311514788,1705171854172,-400.1,0.00027397,2]
[311514789,1705171854182,-500.0,0.00027397,2]
[311514790,1705171854191,-1000.0,0.00027397,2]
[311514791,1705171854201,-1000.0,0.00027397,2]
[311514792,1705171854211,-1000.0,0.00027397,2]
[311514793,1705171854220,-1000.0,0.00027397,2]
[311514794,1705171854230,-1000.0,0.00027397,2]
[311514795,1705171854242,-1000.0,0.00027397,2]
[311514796,1705171854252,-1000.0,0.00027397,2]
[311514797,1705171854260,-1000.0,0.00027397,2]
[311514798,1705171854270,-1000.0,0.00027397,2]
[311514799,1705171854279,-1000.0,0.00027397,2]
[311514800,1705171854288,-1000.0,0.00027397,2]
[311514801,1705171854298,-1000.0,0.00027397,2]
[311514802,1705171854306,-473.40493351,0.00027397,2]
[311514803,1705171854316,-519.48450748,0.00027397,2]
[311514804,1705171854326,-1000.0,0.00027397,2]
[311514805,1705171854337,-502.58704907,0.00027397,2]
[311514806,1705171854346,-500.0,0.00027397,7]
[311514807,1705171854355,-500.0,0.00027397,7]
[311514808,1705171854365,-500.0,0.00027397,7]
[311514809,1705171854374,-500.0,0.00027397,7]
[311514810,1705171854384,-500.0,0.00027397,7]
[311514811,1705171854395,-500.0,0.00027397,7]
[311514812,1705171854404,-500.0,0.00027397,7]
[311514813,1705171854413,-500.0,0.00027397,7]
[311514814,1705171854423,-500.0,0.00027397,7]
[311514815,1705171854432,-500.0,0.00027397,7]
[311514816,1705171854441,-192.39,0.00027397,7]
[311514817,1705171854450,-419.33293259,0.00027397,2]
[311514818,1705171854459,-3606.32189867,0.00027397,2]
[311514819,1705171854467,-268.13381279,0.00027397,2]
[311514820,1705171854477,-200.0,0.00027397,5]
[311514821,1705171854486,-500.0,0.00027397,2]
[311514822,1705171854498,-500.0,0.00027397,2]
[311514823,1705171854508,-500.0,0.00027397,2]
[311514824,1705171854517,-516.03168529,0.00027397,2]
[311514825,1705171854527,-150.0,0.00027397,2]
[311514826,1705171854536,-164.12238173,0.00027397,2]
[311514827,1705171854545,-3000.0,0.00027397,2]
[311514828,1705171854554,-3000.0,0.00027397,2]
[311514829,1705171854563,-3000.0,0.00027397,2]
[311514830,1705171854573,-3000.0,0.00027397,2]
[311514831,1705171854581,-3000.0,0.00027397,2]
[311514832,1705171854590,-3000.0,0.00027397,2]
[311514833,1705171854599,-3000.0,0.00027397,2]
[311514834,1705171854609,-500.0,0.00027397,2]
[311514835,1705171854618,-3000.0,0.00027397,2]
[311514836,1705171854627,-500.0,0.00027397,2]
[311514837,1705171854637,-500.0,0.00027397,2]
[311514838,1705171854646,-170.40267179,0.00027397,2]
[311514839,1705171854655,-3000.0,0.00027397,2]
[311514840,1705171854664,-3000.0,0.00027397,2]
[311514841,1705171854676,-3000.0,0.00027397,2]
[311514842,1705171854685,-3000.0,0.00027397,2]
[311514843,1705171854694,-3000.0,0.00027397,2]
[311514844,1705171854703,-3000.0,0.00027397,2]
[311514845,1705171854713,-3000.0,0.00027397,2]
[311514846,1705171854722,-3000.0,0.00027397,2]
[311514847,1705171854731,-3000.0,0.00027397,2]
[311514848,1705171854740,-3000.0,0.00027397,2]
[311514849,1705171854751,-3000.0,0.00027397,2]
[311514850,1705171854761,-3000.0,0.00027397,2]
[311514851,1705171854769,-155.0,0.00027397,2]
[311514852,1705171854779,-1000.0,0.00027397,7]
[311514853,1705171854788,-1027.95634256,0.00027397,7]
[311514854,1705171854797,-250.0,0.00027397,2]
[311514855,1705171854806,-33588.95,0.00027397,2]
[311514856,1705171854815,-15053.3,0.00027397,2]
[311514857,1705171854824,-23366.29,0.00027397,2]
[311514858,1705171854833,-7668.12,0.00027397,2]
[311514859,1705171854843,-250.0,0.000274,2]
[311514860,1705171854852,-250.0,0.000274,2]
[311514861,1705171854861,-250.0,0.000274,2]
[311514862,1705171854870,-250.0,0.000274,2]
[311514863,1705171854879,-250.0,0.000274,2]
[311514864,1705171854889,-250.0,0.000274,2]
[311514865,1705171854898,-254.3,0.000274,2]
[311514866,1705171854906,-2760.47401854,0.000274,2]
[311514867,1705171854915,-250.0,0.000274,2]
[311514868,1705171854925,-3392.77,0.000274,2]
[311514869,1705171854934,-3392.77,0.000274,2]
[311514870,1705171854943,-3392.77,0.000274,2]
[311514871,1705171854952,-3392.77,0.000274,2]
[311514872,1705171854962,-3392.77,0.000274,2]
[311514873,1705171854971,-3392.77,0.000274,2]
[311514874,1705171854980,-3392.77,0.000274,2]
[311514875,1705171854989,-3392.77,0.000274,2]
[311514876,1705171854998,-3392.77,0.000274,2]
[311514877,1705171855007,-3392.77,0.000274,2]
[311514878,1705171855017,-500.0,0.00027414,7]
[311514879,1705171855026,-1000.0,0.00027428,7]
[311514880,1705171855034,-1000.0,0.00027428,7]
[311514881,1705171855043,-1000.0,0.00027428,7]
[311514882,1705171855053,-1000.0,0.00027428,7]
[311514883,1705171855062,-1000.0,0.00027428,7]
[311514884,1705171855071,-1000.0,0.00027428,7]
[311514885,1705171855080,-1000.0,0.00027428,7]
[311514886,1705171855089,-1000.0,0.00027428,7]
[311514887,1705171855098,-1000.0,0.00027428,7]
[311514888,1705171855107,-4185.66952482,0.00027428,7]
[311514889,1705171855116,-4645.82589527,0.00027428,7]
[311514890,1705171855125,-4886.43650172,0.00027428,7]
[311514891,1705171855134,-6040.79630462,0.00027428,7]
[311514892,1705171855143,-6156.91205063,0.00027428,7]
[311514893,1705171855153,-3601.75846573,0.00027428,7]
[311514894,1705171855162,-1800.87923286,0.00027428,7]
[311514895,1705171855171,-1000.0,0.00027428,7]
[311514896,1705171855181,-1485.21554973,0.00027428,7]
[311514897,1705171855190,-500.0,0.00027428,2]
[311514898,1705171855198,-2654.21453773,0.00027428,7]
[311514899,1705171855207,-1327.10726887,0.00027428,7]
[311514900,1705171855216,-2804.26661363,0.00027428,7]
[311514901,1705171855225,-1000.0,0.00027428,7]
[311514902,1705171855234,-3866.52939525,0.00027428,7]
[311514903,1705171855243,-1000.0,0.00027428,7]
[311514904,1705171855253,-1000.0,0.00027428,7]
[311514905,1705171855262,-1875.99561895,0.00027428,7]
[311514906,1705171855271,-1000.0,0.00027428,7]
[311514907,1705171855280,-11301.22141922,0.00027428,7]
[311514908,1705171855289,-7090.81103913,0.00027428,7]
[311514909,1705171855298,-1000.0,0.00027428,7]
[311514910,1705171855308,-152.0,0.00027444,3]
[311514911,1705171855318,-209.0,0.0002754,2]
[311514912,1705171855328,-209.0,0.0002754,2]
[311514913,1705171855337,-15053.3,0.00027556,2]
[311514914,1705171855347,-14299.50816225,0.00027625,2]
[311514915,1705171855356,-500.0,0.00027671,2]
[311514916,1705171855365,-500.0,0.00027673,7]
[311514917,1705171855374,-15053.3,0.00027714,2]
[311514918,1705171855383,-15053.3,0.00027872,2]
[311514919,1705171855392,-500.0,0.00027931,7]
[311514920,1705171855401,-525.66119103,0.00027945,2]
[311514921,1705171855410,-200.0,0.00027945,5]
[311514922,1705171855419,-150.0,0.00027945,2]
[311514923,1705171855428,-690.9448462,0.00028,2]
[311514924,1705171855437,-202.83544336,0.00028,2]
[311514925,1705171855446,-1000.0,0.00028,2]
[311514926,1705171855455,-1000.0,0.00028,2]
[311514927,1705171855465,-2061.43672,0.00028,2]
[311514928,1705171855474,-1400.0,0.00028,3]
[311514929,1705171855484,-300.0,0.00028,2]
[311514930,1705171855494,-150.0,0.00028,2]
[311514931,1705171855503,-1298.1884168,0.00028,2]
[311514932,1705171855518,-15053.3,0.0002803,2]
[311514933,1705171855528,-3165.56,0.00028035,2]
[311514934,1705171855537,-3119.28,0.00028179,2]
[311514935,1705171855546,-15053.3,0.00028189,2]
[311514936,1705171855556,-500.0,0.0002819,7]
[311514937,1705171855565,-588.0,0.00028219,2]
[311514938,1705171855574,-588.0,0.00028219,2]
[311514939,1705171855584,-588.0,0.00028219,2]
[311514940,1705171855594,-588.0,0.00028219,2]
[311514941,1705171855603,-588.0,0.00028219,2]
[311514942,1705171855612,-588.0,0.00028219,2]
[311514943,1705171855621,-277.24236193,0.00028219,2]
[311514944,1705171855630,-182.0,0.00028252,2]
[311514945,1705171855639,-558.53,0.00028285,2]
[311514946,1705171855648,-167.0,0.00028307,2]
[311514947,1705171855657,-208.0,0.00028339,8]
[311514948,1705171855666,-15053.3,0.00028347,2]
[311514949,1705171855679,-500.0,0.00028448,7]
[311514950,1705171855688,-10000.0,0.0002846,2]
[311514951,1705171855698,-200.0,0.00028493,5]
[311514952,1705171855709,-150.0,0.00028493,2]
[311514953,1705171855719,-209.0,0.000285,2]
[311514954,1705171855729,-209.0,0.000285,2]
[311514955,1705171855737,-15053.3,0.00028505,2]
[311514956,1705171855747,-150.0,0.00028616,2]
[311514957,1705171855756,-408.12,0.00028616,2]
[311514958,1705171855765,-154.61,0.00028616,2]
[311514959,1705171855774,-408.12,0.00028616,2]
[311514960,1705171855784,-294.03,0.00028616,2]
[311514961,1705171855793,-816.24,0.00028616,2]
[311514962,1705171855802,-640.48,0.00028616,2]
[311514963,1705171855811,-15053.3,0.00028664,2]
[311514964,1705171855820,-500.0,0.00028707,7]
[311514965,1705171855829,-420.67,0.00028715,2]
[311514966,1705171855838,-293.69,0.00028715,2]
[311514967,1705171855849,-2000.0,0.00028737,2]
[311514968,1705171855858,-155.0,0.00028767,2]
[311514969,1705171855867,-2507.65305162,0.00028806,4]
[311514970,1705171855876,-14299.50816225,0.00028807,2]
[311514971,1705171855886,-15053.3,0.00028822,2]
[311514972,1705171855895,-152.0,0.00028827,4]
[311514973,1705171855904,-150.0,0.00028879,2]
[311514974,1705171855913,-150.0,0.00028879,2]
[311514975,1705171855922,-37379.39377293,0.0002888,2]
[311514976,1705171855932,-211.6393,0.0002888,7]
[311514977,1705171855941,-1355.0,0.00028938,2]
[311514978,1705171855950,-835.0,0.00028938,2]
[311514979,1705171855960,-1852.0,0.00028938,2]
[311514980,1705171855969,-945.0,0.00028938,2]
[311514981,1705171855978,-1234.0,0.00028938,2]
[311514982,1705171855988,-1252.0,0.00028938,2]
[311514983,1705171855998,-476.219,0.00028938,2]
[311514984,1705171856007,-318.0,0.00028938,2]
[311514985,1705171856017,-7343.0,0.00028938,2]
[311514986,1705171856026,-19683.0,0.00028938,2]
[311514987,1705171856035,-2271.0,0.00028938,2]
[311514988,1705171856044,-8086.0,0.00028938,2]
[311514989,1705171856055,-1028.0,0.00028938,2]
[311514990,1705171856064,-150.0,0.00028938,2]
[311514991,1705171856074,-500.0,0.00028965,7]
[311514992,1705171856083,-150.0,0.00028981,2]
[311514993,1705171856092,-150.0,0.00028981,2]
[311514994,1705171856102,-150.0,0.00028981,2]
[311514995,1705171856111,-5539.8747598,0.00029,2]
[311514996,1705171856120,-73341.07302641,0.00029,10]
[311514997,1705171856130,-808.48802604,0.00029,2]
[311514998,1705171856139,-325.999999,0.00029,2]
[311514999,1705171856148,-29941.0,0.00029,2]
[311515000,1705171856157,-155.22826911,0.00029,2]
[311515001,1705171856165,-1000.0,0.00029,2]
[311515002,1705171856174,-1000.0,0.00029,2]
[311515003,1705171856182,-2000.0,0.00029,2]
[311515004,1705171856191,-300.0,0.00029,2]
[311515005,1705171856200,-150.0,0.00029,2]
[311515006,1705171856210,-1298.1884168,0.00029,2]
[311515007,1705171856219,-3165.56,0.00029013,2]
[311515008,1705171856227,-353.2699401,0.00029041,5]
[311515009,1705171856236,-150.0,0.00029041,2]
[311515010,1705171856246,-558.84,0.00029079,2]
[311515011,1705171856254,-551.45,0.0002913,2]
[311515012,1705171856263,-9119.58084161,0.00029189,2]
[311515013,1705171856272,-500.0,0.00029224,7]
[311515014,1705171856282,-411.0,0.00029414,2]
[311515015,1705171856291,-322.54675053,0.0002945,2]
[311515016,1705171856299,-209.0,0.0002947,2]
[311515017,1705171856308,-209.0,0.0002947,2]
[311515018,1705171856317,-500.0,0.00029482,7]
[311515019,1705171856325,-2000.0,0.000295,3]
[311515020,1705171856334,-320.72534719,0.000295,3]
[311515021,1705171856343,-150.0,0.00029589,2]
[311515022,1705171856352,-3302.9267927,0.000297,2]
[311515023,1705171856361,-4902.47554985,0.000297,2]
[311515024,1705171856369,-9675.60672288,0.000297,2]
[311515025,1705171856378,-10000.0,0.00029722,2]
[311515026,1705171856387,-2000.0,0.00029737,2]
[311515027,1705171856396,-500.0,0.00029741,7]
[311515028,1705171856405,-1000.0,0.000298,5]
[311515029,1705171856414,-196.57818651,0.000298,2]
[311515030,1705171856422,-22161.58848085,0.000298,2]
[311515031,1705171856431,-317.823804,0.000298,2]
[311515032,1705171856440,-317.823804,0.000298,2]
[311515033,1705171856449,-198.285519,0.00029886,2]
[311515034,1705171856457,-177.727677,0.00029886,2]
[311515035,1705171856467,-170.057844,0.00029886,2]
[311515036,1705171856475,-170.057845,0.00029886,2]
[311515037,1705171856484,-403.36109411,0.000299,2]
[311515038,1705171856493,-3661.17351204,0.0002996,2]
[311515039,1705171856502,-168938.1881329,0.00029979,2]
[311515040,1705171856511,-1560.9917659,0.00029979,2]
[311515041,1705171856520,-59118.573866,0.00029979,2]
[311515042,1705171856529,-602.641901,0.00029979,2]
[311515043,1705171856539,-2512.5962833,0.00029979,2]
[311515044,1705171856548,-7125.996932,0.00029979,2]
[311515045,1705171856558,-3175.9763417,0.00029979,2]
[311515046,1705171856567,-3368.3193826,0.00029979,2]
[311515047,1705171856576,-307.51737038,0.0002998,3]
[311515048,1705171856587,-551.17157311,0.0002998,3]
[311515049,1705171856598,-230.93848391,0.0002998,3]
[311515050,1705171856608,-564.26509678,0.0002998,3]
[311515051,1705171856618,-205.59021579,0.0002998,3]
[311515052,1705171856628,-14299.50816225,0.0002999,2]
[311515053,1705171856637,-3165.56,0.00029992,2]
[311515054,1705171856646,-192.30652944,0.00029997,2]
[311515055,1705171856655,-6558.3994044,0.00029997,2]
[311515056,1705171856664,-206058.791296,0.00029999,2]
[311515057,1705171856674,-150.0,0.00029999,2]
[311515058,1705171856687,-150.0,0.00029999,2]
[311515059,1705171856697,-500.0,0.00029999,2]
[311515060,1705171856708,-510.86520224,0.00029999,2]
[311515061,1705171856718,-498.72347962,0.00029999,2]
[311515062,1705171856729,-500.0,0.00029999,2]
[311515063,1705171856740,-500.0,0.00029999,2]
[311515064,1705171856750,-505.9160263,0.00029999,2]
[311515065,1705171856760,-510.86520224,0.00029999,2]
[311515066,1705171856771,-500.0,0.00029999,2]
[311515067,1705171856782,-202.50211335,0.00029999,2]
[311515068,1705171856792,-510.86520224,0.00029999,2]
[311515069,1705171856803,-500.0,0.00029999,2]
[311515070,1705171856813,-510.86520224,0.00029999,2]
[311515071,1705171856822,-500.0,0.00029999,2]
[311515072,1705171856831,-500.0,0.00029999,2]
[311515073,1705171856841,-500.0,0.00029999,2]
[311515074,1705171856850,-510.86520224,0.00029999,2]
[311515075,1705171856860,-510.86520224,0.00029999,2]
[311515076,1705171856870,-500.0,0.00029999,2]
[311515077,1705171856879,-510.86520224,0.00029999,2]
[311515078,1705171856889,-510.86520224,0.00029999,2]
[311515079,1705171856899,-500.0,0.00029999,2]
[311515080,1705171856908,-510.86520224,0.00029999,2]
[311515081,1705171856917,-500.0,0.00029999,2]
[311515082,1705171856926,-510.86520224,0.00029999,2]
[311515083,1705171856935,-500.0,0.00029999,2]
[311515084,1705171856944,-510.86520224,0.00029999,2]
[311515085,1705171856954,-500.0,0.00029999,2]
[311515086,1705171856963,-500.0,0.00029999,2]
[311515087,1705171856973,-510.86520224,0.00029999,2]
[311515088,1705171856982,-510.86520224,0.00029999,2]